Cogmind - Beta 13 @@@ ROGUE MODE // 2024.06.01 @ 14:46:44 Player: wojo Result: Destroyed by Y-45 Defender with Beam Rifle Performance ------------- Evolutions (1) 500 Regions Visited (2) 400 Robots Destroyed (16) 80 Value Destroyed (313) 313 Prototype IDs (0) 0 Alien Tech Used (0) 0 Bonus (0) 0 TOTAL SCORE: 1293 Bonus ------- None Cogmind --------- Core Integrity 0/400 Matter 300/300 Energy 100/100 System Corruption 0% Temperature Cool (9) Movement Core (350) Ox6 Location -9/Materials Parts ------- > --- POWER (2) -------- (None) > --- PROPULSION (2) --- (None) > --- UTILITY (2) ------ Large Storage Unit > --- WEAPON (3) ------- (None) > --- INVENTORY (15) --- Structural Scanner Peak State ------------ > --- POWER ------------ Light Ion Engine Improved Ion Engine > --- PROPULSION ------- Aluminum Leg > --- UTILITY ---------- Cooling System Large Storage Unit > --- WEAPON ----------- Small Laser Beam Cannon Light Assault Rifle > --- INVENTORY -------- Structural Scanner Light Assault Rifle [Rating: 10] Favorites ----------- Power Light Ion Engine Engine Light Ion Engine Propulsion Aluminum Leg Treads Light Treads Leg Aluminum Leg Utility Large Storage Unit Device Structural Scanner Storage Large Storage Unit Weapon Light Assault Rifle Energy Gun Small Laser Energy Cannon Beam Cannon Ballistic Gun Light Assault Rifle Launcher Grenade Launcher Build | -11 -10 -9 ------- Run | Yrd Mat Mat Slots Evolved 2 | . . 2 Power 1 | . . 1 Propulsion . | . . . Utility . | . . . Weapon 1 | . . 1 Parts Attached 28 | 6 10 12 Power 5 | 1 2 2 Engine 5 | 1 2 2 Core . | . . . Reactor . | . . . Propulsion 5 | 2 . 3 Treads 2 | . . 2 Leg 3 | 2 . 1 Wheel . | . . . Hover . | . . . Flight . | . . . Utility 6 | 1 3 2 Device 4 | . 2 2 Storage 2 | 1 1 . Processor . | . . . Hackware . | . . . Protection . | . . . Artifact . | . . . Weapon 12 | 2 5 5 Energy Gun 1 | . . 1 Energy Cannon 4 | . 2 2 Ballistic Gun 4 | 2 . 2 Ballistic Cannon . | . . . Launcher 3 | . 3 . Special Weapon . | . . . Impact Weapon . | . . . Slashing Weapon . | . . . Piercing Weapon . | . . . Special Melee Weapon . | . . . Unidentified Prototypes . | . . . Parts Lost 17 | . 2 15 Power 4 | . 1 3 Propulsion 3 | . . 3 Utility 2 | . . 2 Weapon 8 | . 1 7 Highest Loss Streak 6 | . 1 6 To Critical Strikes . | . . . Average Slot Usage (%) 82 | . 94 67 Engine 10 | . 11 9 Treads 3 | . . 7 Leg 17 | . 26 5 Device 10 | . 12 7 Storage 12 | . 14 11 Energy Gun 1 | . . 2 Energy Cannon 8 | . 2 15 Ballistic Gun 10 | . 12 8 Launcher 7 | . 12 . Naked Turns . | . . . Heaviest Build 37 | 10 30 37 Greatest Support 40 | 20 20 40 Greatest Overweight (x) 8 | 3 2 8 Average Overweight (x) . | . . 1 Largest Inventory Capacity 15 | 8 15 15 Average Capacity 12 | 7 12 15 Most Carried 8 | 3 8 5 Average Carried 4 | 1 7 2 Final Capacity 15 | 8 15 15 Final Carried 5 | 3 5 1 Class Distribution -------------------- 73% | Mutant 19% | Gunner 6% | Skirmisher Dominant Class ---------------- Mutant | -10/Materials Gunner | -9/Materials Resources | -11 -10 -9 ----------- Run | Yrd Mat Mat Matter Collected 511 | 208 181 122 Remotely . | . . . Salvage Created 512 | . 162 350 Parts 27 | . 11 16 Haulers Intercepted 1 | . 1 . Recyclers Shooed 1 | . . 1 Parts Field Recycled . | . . . Retrieved Matter . | . . . Parts Self-Destructed . | . . . Prevented . | . . . Kills | -11 -10 -9 ------- Run | Yrd Mat Mat Combat Hostiles Destroyed 10 | . 2 8 Guns 4 | . 1 3 Cannons 5 | . . 5 AOE 1 | . 1 . Classes Destroyed 7 | . 4 3 Worker 1 | . 1 . Hauler 1 | . 1 . Recycler 2 | . 1 1 Watcher 2 | . . 2 Swarmer 4 | . . 4 Grunt 4 | . 2 2 Sentry 2 | . . 2 Best Kill Streak 4 | . 2 4 Combat Bots Only 2 | . 2 2 Max Kills in Single Turn 2 | . 2 1 Gunslinging . | . . . Exploded 1 | . 1 . Melee . | . . . Uniques/NPCs Destroyed . | . . . Combat | -11 -10 -9 -------- Run | Yrd Mat Mat Hostile Shots Fired 233 | . 22 211 Missed 61 | . 12 49 Damage Taken 2026 | . 267 1759 Core 462 | . 56 406 Absorbed by Shields . | . . . Core Remaining (%) 88 | 100 77 . Volleys Fired 62 | . 16 46 Largest 3 | . 2 3 Hottest 180 | . 120 180 Shots Fired 113 | . 24 89 Gun 59 | . 13 46 Cannon 45 | . 2 43 Launcher 9 | . 9 . Special . | . . . Kinetic 49 | . 13 36 Thermal 55 | . 2 53 Explosive 9 | . 9 . Electromagnetic . | . . . Robot Hit Streak 14 | . 4 14 Robot Miss Streak 4 | . 3 4 Penetration Max . | . . . Secondary Targets . | . . . Shots Hit Robots 62 | . 9 53 Core Hits 31 | . 11 20 Critical Kills . | . . . Critical Parts Destroyed . | . . . Critical Strikes . | . . . Melee Attacks . | . . . Impact . | . . . Slashing . | . . . Piercing . | . . . Sneak Attacks . | . . . Combat Hostiles . | . . . Follow-up Attacks . | . . . Damage Inflicted 971 | 3 299 669 Guns 341 | . 44 297 Cannons 386 | . 36 350 Explosions 213 | . 213 . Melee . | . . . Ramming 31 | 3 6 22 Kinetic 266 | . 44 222 Thermal 461 | . 36 425 Explosive 213 | . 213 . Electromagnetic . | . . . Impact . | . . . Slashing . | . . . Piercing . | . . . Highest Corruption . | . . . Average Corruption . | . . . Corruption Purged . | . . . Corruption Blocked . | . . . Overload Shots . | . . . Overflow Damage 10 | . 10 . Projectiles . | . . . Explosions 10 | . 10 . Melee . | . . . Knockbacks . | . . . Impact . | . . . Kinetic . | . . . Secondary . | . . . Self-Inflicted Damage 166 | . 166 . Shots 7 | . 7 . Rammed 10 | . . 10 Targets Rammed 13 | 2 1 10 Kicked 3 | 2 1 . Crushed . | . . . Highest Temperature 354 | . 45 354 Average Temperature 138 | . 15 164 Received Heat Transfer 468 | . 60 408 Siege Activations . | . . . Robots Corrupted . | . . . Combat Hostiles . | . . . Parts Fried . | . . . Impact Corruptions . | . . . Robots Melted . | . . . Combat Hostiles . | . . . Parts Melted 3 | . . 3 Heat Transferred 989 | . 74 915 Parts Sabotaged . | . . . Parts Stolen . | . . . Parts Stripped . | . . . Power Chain Reactions . | . . . Alert | -11 -10 -9 ------- Run | Yrd Mat Mat Peak Influence 191 | . 161 191 Initial 7 | . . 7 Average 78 | . 71 103 Maximum Alert Level . | . . . Low Security (%) 100 | 100 100 100 Level 1 . | . . . Level 2 . | . . . Level 3 . | . . . Level 4 . | . . . Level 5 . | . . . High Security . | . . . Max Security . | . . . Squads Dispatched 2 | . 1 1 Investigation 1 | . 1 . Extermination . | . . . Reinforcement 1 | . . 1 Assault . | . . . Garrison . | . . . Intercept . | . . . Searches Triggered . | . . . Construction Impeded . | . . . Haulers Reinforced . | . . . Active Scanning Responses . | . . . Cargo Convoy Interrupts . | . . . Stealth | -11 -10 -9 --------- Run | Yrd Mat Mat Distress Signals 2 | . . 2 Communications Jammed . | . . . Distress Signals . | . . . Times Spotted 21 | . 7 14 Peak Tracking Total 7 | . 3 7 Tactical Retreats 3 | . 2 1 Traps | -11 -10 -9 ------- Run | Yrd Mat Mat Traps Triggered 2 | . 2 . Indirectly . | . . . Trap Hack Attempts . | . . . Triggered . | . . . Disarmed . | . . . Reprogrammed . | . . . Reused . | . . . Traps Extracted . | . . . Installed . | . . . Triggered . | . . . Machines | -11 -10 -9 ---------- Run | Yrd Mat Mat Machines Disabled . | . . . Max in Single Turn . | . . . Machines Repaired . | . . . Machines Dismantled . | . . . Machines Sabotaged . | . . . Overloaded Fab Kills . | . . . Hacking | -11 -10 -9 --------- Run | Yrd Mat Mat Machines Accessed 1 | . 1 . Terminals 1 | . 1 . Fabricators . | . . . Repair Stations . | . . . Recycling Units . | . . . Scanalyzers . | . . . Garrison Access . | . . . Total Hacks 3 | . 3 . Successful 2 | . 2 . Failed 1 | . 1 . Catastrophic . | . . . Database Lockouts . | . . . Manual . | . . . Terminals 3 | . 3 . Fabricators . | . . . Repair Stations . | . . . Recycling Units . | . . . Scanalyzers . | . . . Garrison Access . | . . . Terminal Hacks 2 | . 2 . Emergency Access Points 1 | . 1 . Registered Components 1 | . 1 . Fabricator Hacks . | . . . Repair Station Hacks . | . . . Recycling Unit Hacks . | . . . Scanalyzer . | . . . Garrison Access Hacks . | . . . Unauthorized Hacks . | . . . Terminals . | . . . Fabricators . | . . . Repair Stations . | . . . Recycling Units . | . . . Scanalyzers . | . . . Garrison Access . | . . . Data Cores Recovered . | . . . Used . | . . . Hacking Detections 1 | . 1 . Full Trace Events 1 | . 1 . Feedback Events . | . . . Feedback Blocked . | . . . Robot Schematics Acquired . | . . . Robots Built . | . . . Authchips . | . . . Time . | . . . Total Robot Build Rating . | . . . Part Schematics Acquired . | . . . Parts Built . | . . . Authchips . | . . . Time . | . . . Total Part Build Rating . | . . . Parts Repaired . | . . . Time . | . . . Parts Recycled . | . . . Recycled Matter . | . . . Retrieved Matter . | . . . Retrieved Components . | . . . Parts Scanalyzed . | . . . Part Schematics Acquired . | . . . Parts Damaged . | . . . Bothacking | -11 -10 -9 ------------ Run | Yrd Mat Mat Used RIF Installer . | . . . Robots Hacked . | . . . Non-combat . | . . . Combat . | . . . Robot Hacks Applied . | . . . Relay Couplers Released . | . . . Fabnet Peak Effective % . | . . . Robots Rewired . | . . . Allies Hacked . | . . . Hacks Repelled . | . . . Allies | -11 -10 -9 -------- Run | Yrd Mat Mat Total Allies . | . . . Largest Group . | . . . Highest-Rated Group . | . . . Highest-Rated Ally . | . . . Total Orders . | . . . Ally Attacks . | . . . Total Damage . | . . . Kills . | . . . Allies Corrupted . | . . . Allies Melted . | . . . Intel | -11 -10 -9 ------- Run | Yrd Mat Mat Robot Analysis Total . | . . . Derelict Logs Recovered . | . . . Drone Launches . | . . . Drone Recoveries . | . . . Exploration | -11 -10 -9 ------------- Run | Yrd Mat Mat Turns Passed 918 | 75 482 361 Spaces Moved 414 | 50 271 93 Core 18 | 16 . 2 Treads 50 | . . 50 Legs 346 | 34 271 41 Wheels . | . . . Hover . | . . . Flight . | . . . Fastest Speed 50 | 50 120 160 Average Speed 167 | 123 157 219 Slowest Speed 450 | 200 260 450 Overloaded Moves . | . . . Propulsion Burnouts . | . . . Robots Hopped . | . . . Cave-ins Triggered . | . . . Exploration Rate (%) 20 | 4 46 12 Regions Visited 2 Branch Regions . Pre-discovered Areas . | . . . Known Exits Taken . | . . . Unknown Exits Taken 2 | 1 1 . Scrap Searched . | . . . Spaces Dug 13 | . 13 . Terrain Destroyed 55 | . 55 . Melee . | . . . Projectile . | . . . AOE 55 | . 55 . Terrain Rammed . | . . . Walls Destroyed . | . . . Machines Disabled . | . . . Actions | -11 -10 -9 --------- Run | Yrd Mat Mat Total 532 | 60 304 168 Wait 4 | . . 4 Move 412 | 49 270 93 Hop . | . . . Pick Up 11 | 3 5 3 Fast Attach 14 | 6 5 3 Attach 10 | . 3 7 Detach . | . . . Swap 4 | . 2 2 Drop 2 | . 2 . Fire 62 | . 16 46 Melee . | . . . Ram 3 | . . 3 Kick 3 | 2 1 . Crush 7 | . . 7 Escape Stasis . | . . . Rewire . | . . . Trap . | . . . Miscellaneous . | . . . Route ------- -11/Scrapyard -10/Materials -9/Materials History --------- Turn | Location | Event 23 | -11/Scrapyard | Discovered new exit (range 15) 76 | -11/Scrapyard | Entered Materials 307 | -10/Materials | Discovered new exit (range 16) 309 | -10/Materials | Build established: Mutant 558 | -10/Materials | Entered another Materials area 558 | -9/Materials | Evolved 2 slots: Power x1, Weapon x1 729 | -9/Materials | Lost 6 parts (2n1u3w) 824 | -9/Materials | Core integrity fell below 50% 856 | -9/Materials | Lost 4 parts (1p1u2w) 912 | -9/Materials | Core integrity fell below 20% 919 | -9/Materials | Destroyed by Y-45 Defender with Beam Rifle Last Messages --------------- Cooling System destroyed. K-01 Serf collects debris. Beam Cannon destroyed. R-06 Scavenger collects Flight Unit. K-01 Serf collects debris. Sml. Laser destroyed. G-34 Mercenary destroyed. R-06 Scavenger collects Lgt. Armor Plating. K-01 Serf collects debris. Imp. Ion Engine destroyed. K-01 Serf collects debris. G-34 Mercenary destroyed. Acquired 8 matter. Acquired 10 matter. Terminal unresponsive. Aluminum Leg destroyed. Lgt. Ion Engine destroyed. Lgt. Assault Rifle destroyed. Slammed into Y-45 Defender. K-01 Serf cleans the Material Processor. Map ----- +----------------------------------------------------+ | ?????????????????????????????????????????????????? | | ?????????????????????????????????????????????????? | | ?????????????????????????????????????????????????? | | ?????????????????????????????????????????????????? | | ?????????????????????????????????????????????????? | | ?????????????????????????????????????????????????? | | ?????????????????????????????????????????????????? | | ?????????????????????????????????????????????????? | | ?????????????????????????????????????????????????? | | ?????????????????????????????????????????????????? | | ?????????????????????????????????????????????????? | | ?????????????????????????????????????????????????? | | ?????????????????????????????????????????????????? | | ?????????????????????????????????????????????????? | | ?????????????????????????????????????????????????? | | ?????????????????????????????????????????????????? | | ?????????????????????????????????????????????????? | | ?????????????????????????????????????????????????? | | ?????????????????????????????????????????????????? | | ???????????????????????????????????##????????????? | | ???????????????????????????######## ##???????????? | | ???????????????????????????# ] #???????????? | | ???????????????????????#???# # ????????? | | ???????????????????????# ??# u ????????? | | ?????????????????####### ### #???????????? | | ?????????? Y@%Y%""" "" #???????????? | | ?????????? # """ """ #???????????? | | ??????????k # """ S" #???????????? | | ??????????? ####+#######tk # #???????????? | | ???????????????????????#o ###+##########????????? | | ???????????????????????# # #????????? | | ???????????????????????# # "T" """" #????????? | | ???????????????????????# # """" ?????????? | | ???????????????????????# # % """" #????????? | | ???????????????????????# # #????????? | | ???????????????????????# #####+########????????? | | ???????????????????????# #??# %#??????????????? | | ???????????????????????# ####%% #??????????????? | | ????????????????????#### % #??????????????? | | ???????????????? #??????????????? | | ???????????????? #??????????????? | | ????????????????? """" " #??????????????? | | ?????????????????????""" T #########??????? | | ??????????????????? """" " ! | | ?????????????????? #########??????? | | ?????????????????? #??????????????? | | ?????????????????? #??????????????? | | ?????????????????? #??????????????? | | ?????????????????? ][[ #########??????? | | ?????????????????? ][[ == #########??????? | +----------------------------------------------------+ Best States ------------- Heat Dissipation 50 Energy Generation 17 Energy Capacity 290 Matter Stores 300 Matter Capacity 300 Sight Range 16 Terrain Scan Range 14 Terrain Scan Density 10 Evasion (%) 55 Recoil Reduction 2 Item Schematics ----------------- None Robot Schematics ------------------ None Fabricated ------------ Nothing Alien Tech Used ----------------- None Achievements -------------- None Challenges ------------ None Game ------ Seed SmartbombMediumThruster Manual? 0 Play Time 00:13:41 Cumulative 8.3 hours Start 2024.06.01 @ 14:14:02 End 2024.06.01 @ 14:46:44 Sessions 1 Manual Loads 0 Difficulty Rogue Special Mode None Game No. 17 Rogue 17 Adventurer 0 Explorer 0 Win Type - Total 0 Types 0/0/0/0/0/0/0/0/0 Lore% 7 Gallery% 14 Achievement% 14 Wizard Run 0 Options --------- Layout 1 ASCII 0 Keyboard 0 Movement Arrows Keybinds 0 Fullscreen 1 Font 16/SmallcapsGlow Map View 50x40 Zoom Use 0% Tactical HUD 0 Map Filters NONE Filters NONE Steam SD RUN: 4505e5e0-99cd-4273-82cb-9165ba33a379